bitfinex/quotes_BTCUSD_20250719
["timestamp","ask_amount","ask_price","bid_price","bid_amount"]
[1752922916391,8.4e-05,118440.0,118430.0,0.61083385]
[1752922916541,0.17987567,118440.0,118430.0,0.61083385]
[1752922916960,8.4e-05,118440.0,118430.0,0.61382385]
[1752922917199,0.17987567,118440.0,118430.0,0.61382385]
[1752922920115,0.17987567,118440.0,118430.0,0.48614385]
[1752922920312,0.17987567,118440.0,118430.0,0.61394385]
[1752922920527,0.17987567,118440.0,118430.0,0.61095385]
[1752922923422,8.4e-05,118440.0,118430.0,0.61095385]
[1752922923635,0.17987567,118440.0,118430.0,0.61095385]
[1752922923817,0.17987567,118440.0,118430.0,0.63665552]
[1752922924034,8.4e-05,118440.0,118430.0,0.63665552]
[1752922924195,0.17987567,118440.0,118430.0,0.63665552]
[1752922924978,0.19676106,118440.0,118430.0,0.62055552]
[1752922925243,0.19676099,118440.0,118430.0,0.62055552]
[1752922926506,0.18831826,118440.0,118430.0,0.62055552]
[1752922927498,0.18831826,118440.0,118430.0,0.60455552]
[1752922927680,0.19676092,118440.0,118430.0,0.60455552]
[1752922928212,0.18831826,118440.0,118430.0,0.60455552]
[1752922928411,0.19676099,118440.0,118430.0,0.60455552]
[1752922930911,0.18831826,118440.0,118430.0,0.60455552]
[1752922931690,0.19676099,118440.0,118430.0,0.60455552]
[1752922932110,0.19676092,118440.0,118430.0,0.60455552]
[1752922932579,0.01696925,118440.0,118430.0,0.60455552]
[1752922932794,0.19676092,118440.0,118430.0,0.60455552]
[1752922933617,0.20520372,118440.0,118430.0,0.60455552]
[1752922934119,0.19676092,118440.0,118430.0,0.60455552]
[1752922934333,0.20520365,118440.0,118430.0,0.60455552]
[1752922936095,0.19676092,118440.0,118430.0,0.60455552]
[1752922937380,0.20520372,118440.0,118430.0,0.60455552]
[1752922938237,0.20520365,118440.0,118430.0,0.60455552]
[1752922940309,0.19676092,118440.0,118430.0,0.60455552]
[1752922940949,0.18831826,118440.0,118430.0,0.60455552]
[1752922941589,0.00852652,118440.0,118430.0,0.60455552]
[1752922941731,0.18831819,118440.0,118430.0,0.60455552]
[1752922943437,0.17987567,118440.0,118430.0,0.60455552]
[1752922943649,0.18831826,118440.0,118430.0,0.60455552]
[1752922944053,8.4e-05,118440.0,118430.0,0.60455552]
[1752922944286,0.18831826,118440.0,118430.0,0.60455552]
[1752922944421,0.18831819,118440.0,118430.0,0.60455552]
[1752922945454,0.19676085,118440.0,118430.0,0.60455552]
[1752922945659,0.18831819,118440.0,118430.0,0.60455552]
[1752922946350,8.4e-05,118440.0,118430.0,0.60455552]
[1752922946612,0.18831819,118440.0,118430.0,0.60455552]
[1752922947244,0.17987567,118440.0,118430.0,0.60455552]
[1752922947524,0.18831819,118440.0,118430.0,0.60455552]
[1752922949127,0.17987567,118440.0,118430.0,0.60455552]
[1752922949942,0.18831819,118440.0,118430.0,0.60455552]
[1752922950181,0.17987567,118440.0,118430.0,0.60455552]
[1752922950401,0.18831812,118440.0,118430.0,0.60455552]
[1752922951092,0.18831812,118440.0,118430.0,0.62095552]
[1752922951546,0.17987567,118440.0,118430.0,0.62095552]
[1752922952363,0.18831812,118440.0,118430.0,0.62095552]
[1752922952656,0.17987567,118440.0,118430.0,0.62095552]
[1752922952885,0.18831812,118440.0,118430.0,0.62095552]
[1752922953231,8.4e-05,118440.0,118430.0,0.62095552]
[1752922953435,0.17987567,118440.0,118430.0,0.62095552]
[1752922957114,8.4e-05,118440.0,118430.0,0.62095552]
[1752922957350,0.17987567,118440.0,118430.0,0.63635552]
[1752922960585,0.17987567,118440.0,118430.0,0.62095552]
[1752922962116,0.17987567,118440.0,118430.0,0.60455552]
[1752922966089,0.17987567,118440.0,118430.0,0.62085552]
[1752922967648,8.4e-05,118440.0,118430.0,0.62085552]
[1752922968030,0.17987567,118440.0,118430.0,0.62085552]
[1752922970435,0.17987567,118440.0,118430.0,0.60455552]
[1752922982368,0.17987567,118440.0,118430.0,0.57885385]
[1752922982722,8.4e-05,118440.0,118430.0,0.57885385]
[1752922984018,0.17987567,118440.0,118430.0,0.57885385]
[1752922985898,8.4e-05,118440.0,118430.0,0.57885385]
[1752922986115,8.4e-05,118440.0,118430.0,0.91885385]
[1752922988112,8.4e-05,118440.0,118430.0,0.94429145]
[1752922993525,8.4e-05,118440.0,118430.0,0.97831145]
[1752922996864,8.4e-05,118440.0,118430.0,0.96311145]
[1752922997737,8.4e-05,118440.0,118430.0,0.96009145]
[1752923001724,8.4e-05,118440.0,118430.0,0.97871145]
[1752923003758,8.4e-05,118440.0,118430.0,2.42851912]
[1752923004341,8.4e-05,118440.0,118430.0,2.45384812]
[1752923004794,8.4e-05,118440.0,118430.0,2.27405645]
[1752923005007,8.4e-05,118440.0,118430.0,2.45384812]
[1752923005223,8.4e-05,118440.0,118430.0,2.27405645]
[1752923005434,8.4e-05,118440.0,118430.0,1.97070645]
[1752923005601,8.4e-05,118440.0,118430.0,2.15049812]
[1752923006636,8.4e-05,118440.0,118430.0,1.97070645]
[1752923011533,8.4e-05,118440.0,118430.0,1.76066545]
[1752923011774,0.17987567,118440.0,118430.0,1.76066545]
[1752923012260,0.17987567,118440.0,118430.0,1.67355945]
[1752923012951,0.17987567,118440.0,118430.0,1.63892145]
[1752923013176,0.17987567,118440.0,118430.0,1.58219945]
[1752923013878,0.17987567,118440.0,118430.0,1.63713045]
[1752923015665,8.4e-05,118440.0,118430.0,1.63713045]
[1752923015817,0.17987567,118440.0,118430.0,1.63713045]
[1752923021279,0.17987567,118440.0,118430.0,1.63411045]
[1752923021501,8.4e-05,118440.0,118430.0,1.63411045]
[1752923021915,0.17987567,118440.0,118430.0,1.63411045]
[1752923022696,0.17987567,118440.0,118430.0,1.61851045]
[1752923023142,0.17987567,118440.0,118430.0,1.45739645]
[1752923025046,0.16668672,118440.0,118430.0,1.45739645]
[1752923025494,0.01853,118450.0,118430.0,1.45739645]
[1752923025495,0.04227109,118460.0,118440.0,0.3563]
[1752923025711,0.17979167,118450.0,118440.0,0.74578955]
[1752923025942,0.17979167,118450.0,118440.0,0.96113983]
[1752923027391,0.2389453,118460.0,118440.0,0.96113983]
[1752923027392,0.23894516,118460.0,118440.0,0.96113983]
[1752923027636,0.17979167,118450.0,118440.0,0.74894955]
[1752923027847,0.17979167,118450.0,118440.0,0.96209983]
[1752923028067,0.17979167,118450.0,118440.0,0.96309983]
[1752923028515,0.17979167,118450.0,118440.0,0.96409983]
[1752923028974,0.17979167,118450.0,118440.0,0.96209983]
[1752923029196,0.17979167,118450.0,118440.0,0.96409983]
[1752923029419,0.17979167,118450.0,118440.0,0.96209983]
[1752923029873,0.17979167,118450.0,118440.0,0.96409983]
[1752923031185,0.17979167,118450.0,118440.0,1.16657983]
[1752923032106,0.05915349,118460.0,118440.0,1.16657983]
[1752923032316,0.23894516,118460.0,118450.0,0.21315028]
[1752923032598,0.23265392,118460.0,118450.0,0.25484531]
[1752923033523,0.41244559,118460.0,118450.0,0.25484531]
[1752923033938,0.39556334,118460.0,118450.0,0.25484531]
[1752923035448,0.03598,118460.0,118450.0,0.25484531]
[1752923035665,0.39556334,118460.0,118450.0,0.59253531]
[1752923039548,0.37986334,118460.0,118450.0,0.59253531]
[1752923042302,0.38830436,118460.0,118450.0,0.59253531]
[1752923042516,0.37986334,118460.0,118450.0,0.59253531]
[1752923042940,0.38830436,118460.0,118450.0,0.59253531]
[1752923043140,0.37986334,118460.0,118450.0,0.59253531]
[1752923044545,0.02028,118460.0,118450.0,0.59253531]
[1752923044726,0.38830436,118460.0,118450.0,0.59253531]
[1752923045012,0.39674552,118460.0,118450.0,0.59253531]
[1752923045435,0.38830436,118460.0,118450.0,0.59253531]
[1752923046978,0.37986334,118460.0,118450.0,0.59253531]
[1752923048780,0.38830436,118460.0,118450.0,0.59253531]
[1752923048903,0.37986334,118460.0,118450.0,0.59253531]
[1752923052193,0.02028,118460.0,118450.0,0.61812284]
[1752923052427,0.37986334,118460.0,118450.0,0.61812284]
[1752923053852,0.36486334,118460.0,118450.0,0.62017284]
[1752923055082,0.37330436,118460.0,118450.0,0.62017284]
[1752923056137,0.36486334,118460.0,118450.0,0.62017284]
[1752923056923,0.06374045,118470.0,118450.0,0.63567284]
[1752923057125,0.17979167,118460.0,118450.0,0.42252256]
[1752923057281,0.17979167,118460.0,118450.0,0.63567284]
[1752923057653,0.35958334,118460.0,118450.0,0.63567284]
[1752923058274,0.35958334,118460.0,118450.0,0.62017284]
[1752923060205,0.36268334,118460.0,118450.0,0.62017284]
[1752923060938,0.36483334,118460.0,118450.0,0.62017284]
[1752923062856,0.00525,118460.0,118450.0,0.62017284]
[1752923063150,0.36483334,118460.0,118450.0,0.62017284]
[1752923065724,0.06082724,118470.0,118450.0,0.62017284]
[1752923065945,0.17979167,118460.0,118450.0,0.74998256]
[1752923066174,0.17979167,118460.0,118450.0,0.98862084]
[1752923067991,0.35958334,118460.0,118450.0,0.98862084]
[1752923069177,0.17979167,118460.0,118450.0,0.98862084]
[1752923069804,0.0608271,118470.0,118450.0,0.98862084]
[1752923069805,0.04394641,118470.0,118450.0,0.98862084]
[1752923070013,0.04394641,118470.0,118460.0,0.21838069]
[1752923070014,0.19193808,118470.0,118460.0,0.21838069]
[1752923070225,0.19193808,118470.0,118460.0,0.61687824]
[1752923071321,0.19193808,118470.0,118460.0,0.70687824]
[1752923071908,0.19293808,118470.0,118460.0,0.70687824]
[1752923072336,0.19393808,118470.0,118460.0,0.70687824]
[1752923074245,0.19393808,118470.0,118460.0,0.90935824]
[1752923074832,0.19393808,118470.0,118460.0,0.91783427]
[1752923075696,0.19591808,118470.0,118460.0,0.90935824]
[1752923076531,0.01612641,118470.0,118460.0,0.90935824]
[1752923076775,0.19591808,118470.0,118460.0,0.90935824]
[1752923078455,0.19591808,118470.0,118460.0,0.91792314]
[1752923082910,0.13591808,118470.0,118460.0,0.91792314]
[1752923085065,0.13789808,118470.0,118460.0,0.91792314]
[1752923085783,0.13591808,118470.0,118460.0,0.91792314]
[1752923086736,0.13591808,118470.0,118460.0,0.90935824]
[1752923087631,0.13789808,118470.0,118460.0,0.90935824]
[1752923089862,0.14435853,118470.0,118460.0,0.90935824]
[1752923090066,0.16283853,118470.0,118460.0,0.90935824]
[1752923090632,0.16085846,118470.0,118460.0,0.90935824]
[1752923090820,0.14435846,118470.0,118460.0,0.90935824]
[1752923091875,0.15477898,118470.0,118460.0,0.90935824]
[1752923092296,0.17127898,118470.0,118460.0,0.90935824]
[1752923093132,0.17127898,118470.0,118460.0,0.90939824]
[1752923093543,0.16283846,118470.0,118460.0,0.90939824]
[1752923093750,0.17127891,118470.0,118460.0,0.90939824]
[1752923094202,0.1797195,118470.0,118460.0,0.90939824]
[1752923094687,0.17127891,118470.0,118460.0,0.90939824]
[1752923094906,0.16929891,118470.0,118460.0,0.90939824]
[1752923095852,0.17773943,118470.0,118460.0,0.90939824]
[1752923096204,0.17773943,118470.0,118460.0,0.78155824]
[1752923096429,0.2131725,118470.0,118460.0,0.90939824]
[1752923096852,0.1966725,118470.0,118460.0,0.90939824]
[1752923097839,0.20511302,118470.0,118460.0,0.90939824]
[1752923098046,0.02532135,118470.0,118460.0,0.90939824]
[1752923098185,0.20511302,118470.0,118460.0,0.90939824]
[1752923099363,0.20709302,118470.0,118460.0,0.90939824]
[1752923099797,0.1966725,118470.0,118460.0,0.90939824]
[1752923101296,0.20511302,118470.0,118460.0,0.90939824]
[1752923101528,0.38407218,118470.0,118460.0,0.57406824]
[1752923101717,0.41298474,118470.0,118460.0,0.90430824]
[1752923101946,0.59024473,118470.0,118460.0,0.90430824]
[1752923102185,0.42142562,118470.0,118460.0,0.90430824]
[1752923102407,0.41868562,118470.0,118460.0,0.90430824]
[1752923103049,0.41024474,118470.0,118460.0,0.90430824]
[1752923103291,0.05066097,118470.0,118460.0,0.90430824]
[1752923103515,0.23889338,118470.0,118460.0,0.90430824]
[1752923104135,0.23045264,118470.0,118460.0,0.90430824]
[1752923104351,0.23889338,118470.0,118460.0,0.90430824]
[1752923104538,0.23045264,118470.0,118460.0,0.90430824]
[1752923104774,0.23889338,118470.0,118460.0,0.90430824]
[1752923104964,0.23045264,118470.0,118460.0,0.90430824]
[1752923105423,0.21525264,118470.0,118460.0,0.90430824]
[1752923105638,0.21525264,118470.0,118460.0,0.90729824]
[1752923105908,0.22369338,118470.0,118460.0,0.77650824]
[1752923106145,0.41888505,118470.0,118460.0,0.90434824]
[1752923106566,0.41044431,118470.0,118460.0,0.90434824]
[1752923107720,0.41888505,118470.0,118460.0,0.90434824]
[1752923108158,0.42732593,118470.0,118460.0,0.90434824]
[1752923108406,0.59614504,118470.0,118460.0,0.77650824]
[1752923108670,0.42732593,118470.0,118460.0,0.90430824]
[1752923108879,0.41888505,118470.0,118460.0,0.90430824]
[1752923109498,0.41888498,118470.0,118460.0,0.90430824]
[1752923111473,0.42732579,118470.0,118460.0,0.90430824]
[1752923111681,0.41888498,118470.0,118460.0,0.90430824]
[1752923112120,0.41888498,118470.0,118460.0,0.90426824]
[1752923112552,0.42732579,118470.0,118460.0,0.77650824]
[1752923112767,0.42732579,118470.0,118460.0,0.90426824]
[1752923112984,0.41888498,118470.0,118460.0,0.90426824]
[1752923113990,0.42732586,118470.0,118460.0,0.90426824]
[1752923114216,0.43006586,118470.0,118460.0,0.90426824]
[1752923114439,0.59888497,118470.0,118460.0,0.84338028]
[1752923114911,0.59044459,118470.0,118460.0,0.84338028]
[1752923115349,0.42162548,118470.0,118460.0,0.84338028]
[1752923115577,0.59044459,118470.0,118460.0,0.84338028]
[1752923115806,0.07048309,118470.0,118460.0,0.92505181]
[1752923116033,0.43006643,118470.0,118460.0,0.92505181]
[1752923116475,0.59614554,118470.0,118460.0,0.92505181]
[1752923117128,0.42732643,118470.0,118460.0,0.92505181]
[1752923117344,0.41888548,118470.0,118460.0,0.92505181]
[1752923117787,0.4104446,118470.0,118460.0,0.92505181]
[1752923118024,0.41888541,118470.0,118460.0,0.92505181]
[1752923119372,0.42732636,118470.0,118460.0,0.92505181]
[1752923119585,0.41888541,118470.0,118460.0,0.92505181]
[1752923120434,0.42732629,118470.0,118460.0,0.92505181]
[1752923121523,0.41888541,118470.0,118460.0,0.92505181]
[1752923123338,0.4104446,118470.0,118460.0,0.92505181]
[1752923123552,0.41888541,118470.0,118460.0,0.92505181]
[1752923124012,0.41888534,118470.0,118460.0,0.92505181]
[1752923125179,0.059302,118470.0,118460.0,0.92505181]
[1752923125394,0.41888534,118470.0,118460.0,0.92505181]
[1752923126143,0.4104446,118470.0,118460.0,0.92505181]
[1752923126667,0.05086126,118470.0,118460.0,0.92505181]
[1752923126886,0.4104446,118470.0,118460.0,0.92505181]
[1752923127081,0.41888541,118470.0,118460.0,0.92505181]
[1752923128306,0.4104446,118470.0,118460.0,0.92505181]
[1752923128509,0.41888534,118470.0,118460.0,0.72261181]
[1752923132234,0.4104446,118470.0,118460.0,0.72261181]
[1752923132468,0.0508609,118470.0,118460.0,0.72578181]
[1752923132716,0.21525257,118470.0,118460.0,0.72787181]
[1752923135967,0.22369316,118470.0,118460.0,0.72787181]
[1752923136778,0.21525257,118470.0,118460.0,0.72787181]
[1752923136955,0.22369316,118470.0,118460.0,0.72787181]
[1752923137164,0.21569316,118470.0,118460.0,0.72787181]
[1752923137393,0.20511316,118470.0,118460.0,0.72787181]
[1752923138849,0.19667257,118470.0,118460.0,0.72787181]
[1752923140046,0.01688083,118470.0,118460.0,0.72787181]
[1752923140527,0.1966725,118470.0,118460.0,0.72787181]
[1752923142308,0.20511309,118470.0,118460.0,0.72787181]
[1752923143271,0.1966725,118470.0,118460.0,0.72787181]
[1752923143805,0.20511309,118470.0,118460.0,0.72787181]
[1752923144986,0.38490476,118470.0,118460.0,0.72787181]
[1752923145658,0.01688083,118470.0,118460.0,0.72787181]
[1752923145880,0.19638569,118470.0,118460.0,0.72787181]
[1752923146524,0.20482628,118470.0,118460.0,0.72787181]
[1752923147172,0.19638569,118470.0,118460.0,0.72787181]
[1752923147527,0.20482621,118470.0,118460.0,0.72787181]
[1752923147756,0.02503454,118470.0,118460.0,0.72787181]
[1752923147977,0.20482621,118470.0,118460.0,0.72787181]
[1752923148278,0.20634331,118470.0,118460.0,0.59485181]
[1752923148506,0.57931414,118470.0,118460.0,0.64162028]
[1752923148968,0.58008414,118470.0,118460.0,0.64166028]
[1752923149686,0.77441666,118470.0,118460.0,0.51318028]
[1752923149914,0.77441666,118470.0,118460.0,0.64174028]
[1752923150142,0.77441666,118470.0,118460.0,0.51318028]
[1752923150369,0.77441666,118470.0,118460.0,0.64178028]
[1752923150607,0.77441666,118470.0,118460.0,0.51318028]
[1752923150864,0.77441666,118470.0,118460.0,0.64178028]
[1752923151096,0.59462499,118470.0,118460.0,0.70595831]
[1752923151761,0.59462499,118470.0,118460.0,0.64178028]
[1752923153554,0.59462499,118470.0,118460.0,0.51318028]
[1752923153767,0.77441666,118470.0,118460.0,0.64190028]
[1752923158436,0.77441666,118470.0,118460.0,0.51318028]
[1752923158693,0.77441666,118470.0,118460.0,0.64190028]
[1752923159775,0.77441666,118470.0,118460.0,0.51318028]
[1752923159985,0.77441666,118470.0,118460.0,0.64186028]
[1752923162820,0.23504165,118470.0,118460.0,0.64186028]
[1752923163039,0.77441666,118470.0,118460.0,0.64186028]
[1752923163908,0.77364666,118470.0,118460.0,0.64186028]
[1752923164968,0.59385499,118470.0,118460.0,0.64186028]
[1752923166689,0.59385499,118470.0,118460.0,0.70604631]
[1752923167988,0.59385499,118470.0,118460.0,0.64186028]
[1752923169089,0.77364666,118470.0,118460.0,0.64186028]
[1752923173488,0.59385499,118470.0,118460.0,0.64186028]
[1752923177830,0.59385499,118470.0,118460.0,0.64508028]
[1752923178053,0.56105499,118470.0,118460.0,0.64722028]
[1752923178280,0.54528414,118470.0,118460.0,0.71194231]
[1752923178524,0.54528414,118470.0,118460.0,0.74294231]
[1752923178750,0.55982499,118470.0,118460.0,0.74294231]
[1752923179358,0.20024165,118470.0,118460.0,0.74294231]
[1752923179572,0.55982499,118470.0,118460.0,0.74294231]
[1752923179802,0.54528414,118470.0,118460.0,0.74294231]
[1752923184876,0.54528414,118470.0,118460.0,0.66272028]
[1752923185697,0.54528414,118470.0,118460.0,0.64722028]
[1752923210438,0.54528414,118470.0,118460.0,0.66342028]
[1752923210640,0.54528414,118470.0,118460.0,0.67902028]
[1752923214062,0.54528414,118470.0,118460.0,0.66282028]
[1752923214492,0.54528414,118470.0,118460.0,0.73072231]
[1752923214699,0.1857008,118470.0,118460.0,0.73072231]
[1752923214920,0.54528414,118470.0,118460.0,0.73072231]
[1752923215148,0.1857008,118470.0,118460.0,0.73072231]
[1752923215369,0.54528414,118470.0,118460.0,0.74702231]
[1752923215845,0.36802393,118470.0,118460.0,0.74702231]
[1752923216048,0.19667278,118470.0,118460.0,0.74702231]
[1752923216268,0.21355433,118470.0,118460.0,0.74702231]
[1752923216475,0.02532178,118470.0,118460.0,0.74702231]
[1752923216727,0.20511359,118470.0,118460.0,0.74702231]
[1752923217154,0.38490526,118470.0,118460.0,0.74702231]
[1752923217364,0.39334621,118470.0,118460.0,0.74702231]
[1752923217574,0.38490526,118470.0,118460.0,0.74702231]
[1752923218472,0.38490519,118470.0,118460.0,0.74702231]
[1752923219135,0.37646445,118470.0,118460.0,0.74702231]
[1752923219347,0.19667278,118470.0,118460.0,0.74702231]
[1752923220009,0.37646445,118470.0,118460.0,0.74702231]
[1752923220937,0.38490519,118470.0,118460.0,0.74702231]
[1752923221778,0.02532185,118470.0,118460.0,0.74702231]
[1752923221933,0.37646445,118470.0,118460.0,0.74702231]
[1752923223169,0.38490512,118470.0,118460.0,0.74702231]
[1752923223353,0.39334593,118470.0,118460.0,0.74702231]
[1752923223848,0.03376259,118470.0,118460.0,0.74702231]
[1752923224080,0.39334593,118470.0,118460.0,0.74702231]
[1752923224306,0.01688111,118470.0,118460.0,0.74702231]
[1752923224581,0.38490519,118470.0,118460.0,0.74702231]
[1752923225017,0.393346,118470.0,118460.0,0.74702231]
[1752923225792,0.56216511,118470.0,118460.0,0.74702231]
[1752923226480,0.393346,118470.0,118460.0,0.74702231]
[1752923226708,0.40178695,118470.0,118460.0,0.74702231]
[1752923227343,0.40178688,118470.0,118460.0,0.74702231]
[1752923229401,0.38490519,118470.0,118460.0,0.74702231]
[1752923230229,0.02532185,118470.0,118460.0,0.74702231]
[1752923230412,0.38490519,118470.0,118460.0,0.74702231]
[1752923230654,0.393346,118470.0,118460.0,0.74702231]
[1752923230866,0.40178695,118470.0,118460.0,0.74702231]
[1752923231942,0.40178688,118470.0,118460.0,0.74702231]
[1752923232183,0.393346,118470.0,118460.0,0.74702231]
[1752923232416,0.39334614,118470.0,118460.0,0.74702231]
[1752923233423,0.393346,118470.0,118460.0,0.74702231]
[1752923233615,0.40178688,118470.0,118460.0,0.74702231]
[1752923233782,0.57060599,118470.0,118460.0,0.74702231]
[1752923235011,0.40178688,118470.0,118460.0,0.74702231]
[1752923238303,0.56216547,118470.0,118460.0,0.74702231]
[1752923238515,0.54528414,118470.0,118460.0,0.74702231]
[1752923238937,0.36549247,118470.0,118460.0,0.74702231]
[1752923239589,0.37393342,118470.0,118460.0,0.74702231]
[1752923240267,0.19667336,118470.0,118460.0,0.74702231]
[1752923240491,0.20511331,118470.0,118460.0,0.74702231]
[1752923241254,0.20511324,118470.0,118460.0,0.74702231]
[1752923241897,0.21355405,118470.0,118460.0,0.74802231]
[1752923242083,0.20511324,118470.0,118460.0,0.74802231]
[1752923242298,0.22199493,118470.0,118460.0,0.74802231]
[1752923242520,0.22199486,118470.0,118460.0,0.74802231]
[1752923243183,0.21355448,118470.0,118460.0,0.74802231]
[1752923243664,0.4017471,118470.0,118460.0,0.74802231]
[1752923243877,0.56212569,118470.0,118460.0,0.74802231]
[1752923244531,0.55368502,118470.0,118460.0,0.74802231]
[1752923244745,0.55372502,118470.0,118460.0,0.68012028]
[1752923246940,0.54528428,118470.0,118460.0,0.68012028]
[1752923247384,0.54528428,118470.0,118460.0,0.64822028]
[1752923248283,0.18570094,118470.0,118460.0,0.64822028]
[1752923248509,0.54528428,118470.0,118460.0,0.71864288]
[1752923252684,0.54528428,118470.0,118460.0,0.75044288]
[1752923257185,0.18570094,118470.0,118460.0,0.75044288]
[1752923257399,0.54528428,118470.0,118460.0,0.75044288]
[1752923262388,0.54528428,118470.0,118460.0,0.75028288]
[1752923263821,0.53440728,118470.0,118460.0,0.75028288]
[1752923264024,0.54284816,118470.0,118460.0,0.75028288]
[1752923272486,0.37646489,118470.0,118460.0,0.75028288]
[1752923272708,0.55372495,118470.0,118460.0,0.75028288]
[1752923274791,0.38490534,118470.0,118460.0,0.75028288]
[1752923275516,0.37646446,118470.0,118460.0,0.75028288]
[1752923275740,0.3849052,118470.0,118460.0,0.75028288]
[1752923275967,0.37646446,118470.0,118460.0,0.75028288]
[1752923276412,0.39334615,118470.0,118460.0,0.75028288]
[1752923276606,0.39334608,118470.0,118460.0,0.75028288]
[1752923277448,0.3849052,118470.0,118460.0,0.75028288]
[1752923278138,0.39334608,118470.0,118460.0,0.75028288]
[1752923278353,0.01688112,118470.0,118460.0,0.75028288]
[1752923278571,0.38490527,118470.0,118460.0,0.75028288]
[1752923278783,0.37646446,118470.0,118460.0,0.75028288]
[1752923279200,0.38490534,118470.0,118460.0,0.75028288]
[1752923279910,0.37646446,118470.0,118460.0,0.75028288]
[1752923280921,0.37646446,118470.0,118460.0,0.75889713]
[1752923282434,0.38490527,118470.0,118460.0,0.75889713]
[1752923282818,0.37646446,118470.0,118460.0,0.75889713]
[1752923283048,0.3849052,118470.0,118460.0,0.75028288]
[1752923283689,0.39334608,118470.0,118460.0,0.75028288]
[1752923284872,0.3849052,118470.0,118460.0,0.75028288]
[1752923286103,0.38490505,118470.0,118460.0,0.75028288]
[1752923287680,0.3849049,118470.0,118460.0,0.75028288]
[1752923287903,0.39334564,118470.0,118460.0,0.75028288]
[1752923288195,0.3849049,118470.0,118460.0,0.75028288]
[1752923288705,0.40178645,118470.0,118460.0,0.75028288]
[1752923289412,0.40178645,118470.0,118460.0,0.71848288]
[1752923289764,0.40178638,118470.0,118460.0,0.71848288]
[1752923291934,0.22199471,118470.0,118460.0,0.71848288]
[1752923292766,0.17979167,118470.0,118460.0,0.71848288]
[1752923292993,0.19667279,118470.0,118460.0,0.75008288]
[1752923293436,0.19667271,118470.0,118460.0,0.75008288]
[1752923295987,0.00844045,118470.0,118460.0,0.75008288]
[1752923296174,0.17979167,118470.0,118460.0,0.75008288]
[1752923296333,0.18823212,118470.0,118460.0,0.75008288]
[1752923297911,0.18823205,118470.0,118460.0,0.75008288]
[1752923298146,0.1966725,118470.0,118460.0,0.75008288]
[1752923299482,0.20511309,118470.0,118460.0,0.75008288]
[1752923299734,0.21355383,118470.0,118460.0,0.73398288]
[1752923299927,0.39334543,118470.0,118460.0,0.73398288]
[1752923300488,0.39334543,118470.0,118460.0,0.71848288]
[1752923300722,0.38490476,118470.0,118460.0,0.71848288]
[1752923301335,0.20511309,118470.0,118460.0,0.71848288]
[1752923304676,0.01688083,118470.0,118460.0,0.71848288]
[1752923304899,0.20511302,118470.0,118460.0,0.71848288]
[1752923305142,0.1966725,118470.0,118460.0,0.71848288]
[1752923305601,0.20511302,118470.0,118460.0,0.71848288]
[1752923306503,0.21355361,118470.0,118460.0,0.71848288]
[1752923308470,0.21355361,118470.0,118460.0,0.58996288]
[1752923308681,0.22199435,118470.0,118460.0,0.71816288]
[1752923308923,0.21355361,118470.0,118460.0,0.71816288]
[1752923311653,0.22199435,118470.0,118460.0,0.71816288]
[1752923312559,0.21355361,118470.0,118460.0,0.71816288]
[1752923312895,0.03376194,118470.0,118460.0,0.71816288]
[1752923313124,0.21355361,118470.0,118460.0,0.71816288]
[1752923313882,0.17979167,118470.0,118460.0,0.71816288]
[1752923314096,0.17979167,118470.0,118460.0,0.75096288]
[1752923314324,0.18823198,118470.0,118460.0,0.75096288]
[1752923314544,0.19667243,118470.0,118460.0,0.75096288]
[1752923314948,0.18823198,118470.0,118460.0,0.75096288]
[1752923315404,0.20511302,118470.0,118460.0,0.75096288]
[1752923316228,0.19667243,118470.0,118460.0,0.75096288]
[1752923316444,0.20511295,118470.0,118460.0,0.73436288]
[1752923317197,0.02532128,118470.0,118460.0,0.73436288]
[1752923317442,0.20511281,118470.0,118460.0,0.73436288]
[1752923319169,0.2135534,118470.0,118460.0,0.73436288]
[1752923319541,0.2135534,118470.0,118460.0,0.71816288]
[1752923320700,0.20511281,118470.0,118460.0,0.71816288]
[1752923320933,0.21355333,118470.0,118460.0,0.71816288]
[1752923321168,0.20511281,118470.0,118460.0,0.71816288]
[1752923322646,0.21355333,118470.0,118460.0,0.71816288]
[1752923323034,0.20511281,118470.0,118460.0,0.71816288]
[1752923325504,0.2135534,118470.0,118460.0,0.71816288]
[1752923326897,0.21355333,118470.0,118460.0,0.71816288]
[1752923330431,0.03376166,118470.0,118460.0,0.71816288]
[1752923330643,0.21355333,118470.0,118460.0,0.71816288]
[1752923331734,0.20511281,118470.0,118460.0,0.71816288]
[1752923331941,0.01688069,118470.0,118460.0,0.71816288]
[1752923332148,0.19667236,118470.0,118460.0,0.71816288]
[1752923332390,0.02532121,118470.0,118460.0,0.71816288]
[1752923332580,0.20511288,118470.0,118460.0,0.71816288]
[1752923332994,0.19667236,118470.0,118460.0,0.71816288]
[1752923333405,0.17979167,118470.0,118460.0,0.71816288]
[1752923334454,0.17979167,118470.0,118460.0,0.74956288]
[1752923337562,0.17979167,118470.0,118460.0,0.74948288]
[1752923337956,0.2051116,118480.0,118460.0,0.74948288]
[1752923338141,0.17979167,118470.0,118460.0,0.5326326]
[1752923338353,0.17979167,118470.0,118460.0,0.74622288]
[1752923338783,0.17979167,118470.0,118460.0,0.74846288]
[1752923339247,0.17979167,118470.0,118460.0,0.74946288]
[1752923339659,0.17979167,118470.0,118460.0,0.74846288]
[1752923340040,0.17979167,118470.0,118460.0,0.74946288]
[1752923340637,0.17979167,118470.0,118460.0,0.71806288]
[1752923341912,4.971e-05,118480.0,118470.0,0.34]
[1752923342132,0.17984138,118480.0,118470.0,1.00291672]
[1752923342331,0.35963305,118480.0,118470.0,0.9821899]
[1752923342961,0.36063305,118480.0,118470.0,0.9821899]
[1752923343574,0.35963305,118480.0,118470.0,0.9821899]
[1752923343782,0.35963305,118480.0,118470.0,0.9831899]
[1752923348323,0.36807272,118480.0,118470.0,0.9831899]
[1752923348737,0.35963305,118480.0,118470.0,0.9831899]
[1752923350305,0.17984138,118480.0,118470.0,0.9831899]
[1752923350513,0.35963305,118480.0,118470.0,0.9831899]
[1752923350721,0.36807265,118480.0,118470.0,0.9831899]
[1752923351358,0.35963305,118480.0,118470.0,0.9831899]
[1752923351975,0.4094426,118480.0,118470.0,0.9831899]
[1752923352215,0.40944253,118480.0,118470.0,0.9831899]
[1752923353399,0.40100272,118480.0,118470.0,0.9831899]
[1752923353612,0.40944253,118480.0,118470.0,0.9831899]
[1752923354646,0.39251253,118480.0,118470.0,0.9831899]
[1752923355689,0.02448938,118480.0,118470.0,0.9831899]
[1752923355994,0.39251246,118480.0,118470.0,0.9831899]
[1752923356402,0.02536893,118480.0,118470.0,0.9831899]
[1752923356618,0.38495227,118480.0,118470.0,0.9831899]
[1752923356960,0.37651246,118480.0,118470.0,0.9831899]
[1752923357991,0.38495234,118480.0,118470.0,0.9831899]
[1752923358559,0.37651246,118480.0,118470.0,0.9831899]
[1752923358768,0.38495234,118480.0,118470.0,0.9831899]
[1752923359554,0.37651246,118480.0,118470.0,0.9831899]
[1752923360045,0.38495234,118480.0,118470.0,0.9831899]
[1752923360660,0.38495241,118480.0,118470.0,0.9831899]
[1752923360869,0.40075234,118480.0,118470.0,0.9831899]
[1752923361707,0.40919236,118480.0,118470.0,0.9831899]